bitfinex/quotes_BTCUSD_20250615
["timestamp","ask_amount","ask_price","bid_price","bid_amount"]
[1749947493202,0.44217536,105590.0,105580.0,1.18733287]
[1749947493339,0.41553872,105590.0,105580.0,1.18733287]
[1749947493538,0.4244176,105590.0,105580.0,1.18733287]
[1749947493770,0.44217539,105590.0,105580.0,1.18733287]
[1749947493963,0.43551161,105590.0,105580.0,1.18733287]
[1749947494334,0.41775385,105590.0,105580.0,1.18733287]
[1749947494548,0.44498212,105590.0,105580.0,1.18733287]
[1749947494753,0.63439399,105590.0,105580.0,1.17786201]
[1749947494955,0.62551512,105590.0,105580.0,1.17786201]
[1749947495344,0.63439401,105590.0,105580.0,1.17762201]
[1749947495567,0.63184526,105590.0,105580.0,0.68230544]
[1749947495777,0.62296638,105590.0,105580.0,1.15532153]
[1749947495983,0.64072416,105590.0,105580.0,1.12688038]
[1749947496185,0.64072411,105590.0,105580.0,1.12688038]
[1749947496438,0.62296635,105590.0,105580.0,1.12688038]
[1749947496745,0.61408747,105590.0,105580.0,1.13635151]
[1749947496950,0.63184578,105590.0,105580.0,1.13635151]
[1749947497148,0.62296658,105590.0,105580.0,1.13635151]
[1749947497375,0.64072476,105590.0,105580.0,1.13635151]
[1749947497576,0.64072475,105590.0,105580.0,1.13635151]
[1749947497779,0.64072478,105590.0,105580.0,1.13635151]
[1749947498098,0.6407248,105590.0,105580.0,1.13635151]
[1749947498301,0.63184563,105590.0,105580.0,1.13635151]
[1749947498507,0.64072464,105590.0,105580.0,1.13635151]
[1749947498756,0.64072472,105590.0,105580.0,1.13635151]
[1749947498960,0.64072448,105590.0,105580.0,1.13635151]
[1749947499179,0.63184516,105590.0,105580.0,1.13635151]
[1749947499329,0.640724,105590.0,105580.0,1.13635151]
[1749947499916,0.61408747,105590.0,105580.0,1.13635151]
[1749947500111,0.63184516,105590.0,105580.0,1.13635151]
[1749947500338,0.59828747,105590.0,105580.0,1.13635151]
[1749947500542,0.62492402,105590.0,105580.0,1.14582255]
[1749947500948,0.60657503,105590.0,105580.0,1.12688038]
[1749947501302,0.61545386,105590.0,105580.0,1.12688038]
[1749947501419,0.61545386,105590.0,105580.0,0.68230544]
[1749947501776,0.63125383,105590.0,105580.0,0.68230544]
[1749947501986,0.63125385,105590.0,105580.0,0.69177657]
[1749947502326,0.60461733,105590.0,105580.0,0.69177657]
[1749947502569,0.63125385,105590.0,105580.0,0.53749657]
[1749947502745,0.61545385,105590.0,105580.0,0.69165657]
[1749947502963,0.58881733,105590.0,105580.0,0.69165657]
[1749947503167,0.61545385,105590.0,105580.0,0.69165657]
[1749947503376,0.61545385,105590.0,105580.0,1.13623151]
[1749947503761,0.61419617,105590.0,105580.0,0.68218544]
[1749947504158,0.63195385,105590.0,105580.0,0.68218544]
[1749947504388,0.63195384,105590.0,105580.0,0.68218544]
[1749947504599,0.63195383,105590.0,105580.0,0.68218544]
[1749947504801,0.61545383,105590.0,105580.0,0.69165657]
[1749947505006,0.606575,105590.0,105580.0,0.69165657]
[1749947505228,0.61545385,105590.0,105580.0,1.13623151]
[1749947505432,0.60657501,105590.0,105580.0,1.13623151]
[1749947506026,0.61545385,105590.0,105580.0,1.13623151]
[1749947506225,0.58881733,105590.0,105580.0,1.13623151]
[1749947506408,0.606575,105590.0,105580.0,1.13623151]
[1749947506603,0.61545383,105590.0,105580.0,1.13623151]
[1749947506807,0.61545385,105590.0,105580.0,1.15143151]
[1749947506942,0.61545382,105590.0,105580.0,1.15143151]
[1749947507148,0.60657499,105590.0,105580.0,1.15143151]
[1749947507398,0.61545385,105590.0,105580.0,1.15143151]
[1749947507765,0.61545384,105590.0,105580.0,1.15143151]
[1749947508229,0.61545382,105590.0,105580.0,1.15143151]
[1749947508453,0.60657499,105590.0,105580.0,1.15143151]
[1749947508659,0.59769585,105590.0,105580.0,1.15143151]
[1749947508835,0.60657438,105590.0,105580.0,1.15143151]
[1749947509237,0.6154529,105590.0,105580.0,1.15143151]
[1749947509481,0.58881733,105590.0,105580.0,1.15143151]
[1749947509681,0.61545289,105590.0,105580.0,1.15143151]
[1749947509914,0.60657437,105590.0,105580.0,1.15143151]
[1749947510119,0.59769585,105590.0,105580.0,1.15143151]
[1749947510535,0.59769584,105590.0,105580.0,1.15143151]
[1749947510742,0.61545287,105590.0,105580.0,1.15143151]
[1749947510944,0.61545287,105590.0,105580.0,1.16090255]
[1749947512114,0.60657437,105590.0,105580.0,1.16090255]
[1749947512372,0.61545289,105590.0,105580.0,1.16090255]
[1749947512559,0.59769585,105590.0,105580.0,1.16090255]
[1749947512790,0.61545289,105590.0,105580.0,1.16090255]
[1749947513004,0.59769585,105590.0,105580.0,1.16090255]
[1749947513328,0.60657437,105590.0,105580.0,1.16090255]
[1749947513707,0.6154529,105590.0,105580.0,1.16090255]
[1749947514091,0.61545289,105590.0,105580.0,1.16090255]
[1749947514305,0.61545287,105590.0,105580.0,1.16090706]
[1749947514520,0.59769584,105590.0,105580.0,1.16090706]
[1749947514710,0.61545287,105590.0,105580.0,1.16090706]
[1749947515330,0.59769584,105590.0,105580.0,1.16090706]
[1749947515472,0.61545286,105590.0,105580.0,1.17037801]
[1749947515845,0.62492354,105590.0,105580.0,1.21442479]
[1749947516045,0.60716646,105590.0,105580.0,1.21442479]
[1749947516179,0.62492357,105590.0,105580.0,1.21442479]
[1749947518849,0.62492362,105590.0,105580.0,1.21442479]
[1749947519152,0.6249246,105590.0,105580.0,1.21442479]
[1749947519361,0.61604571,105590.0,105580.0,1.21442479]
[1749947519539,0.6249246,105590.0,105580.0,1.21442479]
[1749947519929,0.60716681,105590.0,105580.0,1.21442479]
[1749947520260,0.6249246,105590.0,105580.0,1.21442479]
[1749947520394,0.62492457,105590.0,105580.0,1.21442479]
[1749947520610,0.6071668,105590.0,105580.0,1.21442479]
[1749947520816,0.60716679,105590.0,105580.0,1.21442479]
[1749947521022,0.62492449,105590.0,105580.0,1.21442479]
[1749947521262,0.61604558,105590.0,105580.0,1.21442479]
[1749947521439,0.60716587,105590.0,105580.0,1.21442479]
[1749947521641,0.62492177,105590.0,105580.0,1.21442479]
[1749947521848,0.59333952,105590.0,105580.0,1.21442479]
[1749947522048,0.37551615,105590.0,105580.0,1.25434416]
[1749947522228,0.40274194,105590.0,105580.0,1.25434416]
[1749947522431,0.39445607,105590.0,105580.0,1.25434416]
[1749947522665,0.40333408,105590.0,105580.0,1.25434416]
[1749947523001,0.39445607,105590.0,105580.0,1.25434416]
[1749947523218,0.40333407,105590.0,105580.0,1.25434416]
[1749947523428,0.40333402,105590.0,105580.0,1.25434416]
[1749947523634,0.40333408,105590.0,105580.0,1.25434416]
[1749947524025,0.39445607,105590.0,105580.0,1.25434416]
[1749947524225,0.40392621,105590.0,105580.0,1.25434416]
[1749947524433,0.41280422,105590.0,105580.0,1.25434416]
[1749947524664,0.40392621,105590.0,105580.0,1.25434416]
[1749947524873,1.12131985,105590.0,105580.0,0.34810421]
[1749947525053,1.06782138,105590.0,105580.0,0.47409743]
[1749947525263,1.07669941,105590.0,105580.0,0.47409743]
[1749947525467,1.05894351,105590.0,105580.0,0.31965743]
[1749947525674,1.08557688,105590.0,105580.0,0.31965743]
[1749947525884,1.19959821,105590.0,105580.0,0.31965743]
[1749947526084,1.21045316,105590.0,105580.0,0.45134]
[1749947526294,1.23708325,105590.0,105580.0,0.45134]
[1749947526466,1.21267182,105590.0,105580.0,0.45134]
[1749947526669,1.23042536,105590.0,105580.0,0.2969]
[1749947526871,1.20379494,105590.0,105580.0,0.15644]
[1749947527076,1.21932904,105590.0,105580.0,0.15644]
[1749947527245,1.21932904,105590.0,105580.0,0.1564]
[1749947527444,1.20379494,105590.0,105580.0,0.1564]
[1749947527647,1.21267157,105590.0,105580.0,0.1564]
[1749947527862,1.23042478,105590.0,105580.0,0.1564]
[1749947528064,1.22820563,105590.0,105580.0,0.1564]
[1749947528272,1.21932904,105590.0,105580.0,0.1564]
[1749947528474,1.2370823,105590.0,105580.0,0.1564]
[1749947528724,1.22820569,105590.0,105580.0,0.1564]
[1749947528922,1.21710989,105590.0,105580.0,0.1564]
[1749947529139,1.24364438,105590.0,105580.0,0.002]
[1749947529348,1.23700599,105590.0,105580.0,0.002]
[1749947530043,1.21930359,105590.0,105580.0,0.002]
[1749947530276,1.24364432,105590.0,105580.0,0.002]
[1749947530409,1.23479315,105590.0,105580.0,0.002]
[1749947530611,1.24364434,105590.0,105580.0,0.002]
[1749947530813,1.23700596,105590.0,105580.0,0.002]
[1749947531092,1.24364421,105590.0,105580.0,0.002]
[1749947531318,1.2436442,105590.0,105580.0,0.002]
[1749947531525,1.228157,105590.0,105580.0,0.002]
[1749947531690,1.24364951,105590.0,105580.0,0.002]
[1749947531898,1.24364967,105590.0,105580.0,0.002]
[1749947532152,1.22815727,105590.0,105580.0,0.002]
[1749947532381,1.24364889,105590.0,105580.0,0.002]
[1749947532655,1.24364891,105590.0,105580.0,0.002]
[1749947532896,1.22594412,105590.0,105580.0,0.002]
[1749947533109,1.24364896,105590.0,105580.0,0.002]
[1749947533326,1.21045241,105590.0,105580.0,0.002]
[1749947533523,1.23700965,105590.0,105580.0,0.002]
[1749947533744,1.21709172,105590.0,105580.0,0.002]
[1749947533929,1.24364896,105590.0,105580.0,0.002]
[1749947534127,1.2347964,105590.0,105580.0,0.002]
[1749947534457,1.23700961,105590.0,105580.0,0.002]
[1749947534651,1.24364892,105590.0,105580.0,0.002]
[1749947534860,1.24557271,105590.0,105580.0,0.002]
[1749947535275,1.23893341,105590.0,105580.0,0.002]
[1749947535481,1.24364894,105590.0,105580.0,0.002]
[1749947535626,1.22815723,105590.0,105580.0,0.002]
[1749947535829,1.24364894,105590.0,105580.0,0.002]
[1749947536029,1.23479657,105590.0,105580.0,0.002]
[1749947536236,1.24364897,105590.0,105580.0,0.002]
[1749947536429,1.21930483,105590.0,105580.0,0.002]
[1749947536617,1.24364895,105590.0,105580.0,0.002]
[1749947536817,1.23479654,105590.0,105580.0,0.002]
[1749947537050,1.24364884,105590.0,105580.0,0.002]
[1749947537403,1.22815713,105590.0,105580.0,0.002]
[1749947537535,1.21709168,105590.0,105580.0,0.002]
[1749947537904,1.25155019,105590.0,105580.0,0.002]
[1749947538115,1.25154987,105590.0,105580.0,0.002]
[1749947538273,1.39508431,105590.0,105580.0,0.002]
[1749947538511,1.40612959,105590.0,105580.0,0.002]
[1749947538687,1.37959326,105590.0,105580.0,0.001]
[1749947538908,1.41692146,105590.0,105580.0,0.001]
[1749947539077,0.56379188,105570.0,105560.0,0.1546]
[1749947539283,0.1989388,105560.0,105550.0,0.41950038]
[1749947539523,0.64351374,105560.0,105550.0,0.35140978]
[1749947539657,0.64351374,105560.0,105550.0,0.50596978]
[1749947540310,0.64351374,105560.0,105550.0,0.31148978]
[1749947540311,0.98351374,105560.0,105550.0,0.31148978]
[1749947540534,0.98351374,105560.0,105550.0,0.44954978]
[1749947541126,0.98351374,105560.0,105550.0,0.45454978]
[1749947542274,0.98351374,105560.0,105550.0,0.45854978]
[1749947543029,0.99274731,105560.0,105550.0,0.45854978]
[1749947543551,0.99274731,105560.0,105550.0,0.45850978]
[1749947544772,0.99274731,105560.0,105550.0,0.16360978]
[1749947545787,0.99274731,105560.0,105550.0,0.00908978]
[1749947545990,0.99274731,105560.0,105550.0,0.16356978]
[1749947547926,0.99274731,105560.0,105550.0,0.17856978]
[1749947549205,0.54817237,105560.0,105550.0,0.17856978]
[1749947550097,0.54817237,105560.0,105550.0,0.18804396]
[1749947551079,0.55788419,105560.0,105550.0,0.49825092]
[1749947551290,0.55788419,105560.0,105550.0,0.43052325]
[1749947551499,0.55788419,105560.0,105550.0,0.87509819]
[1749947552199,0.55788419,105560.0,105550.0,0.87509837]
[1749947552426,0.55788419,105560.0,105550.0,0.87509792]
[1749947553379,0.55788419,105560.0,105550.0,0.89779763]
[1749947553605,0.54841163,105560.0,105550.0,0.87885008]
[1749947554790,0.5389388,105560.0,105550.0,0.42480123]
[1749947554969,0.5294657,105560.0,105550.0,0.41532732]
[1749947555167,0.5294657,105560.0,105550.0,0.42480141]
[1749947555348,0.5294657,105560.0,105550.0,0.43427541]
[1749947556005,0.97404064,105560.0,105550.0,0.03178949]
[1749947556209,0.97404064,105560.0,105550.0,0.18638949]
[1749947556417,0.97404064,105560.0,105550.0,0.18641798]
[1749947556621,0.97404064,105560.0,105550.0,0.16368978]
[1749947557343,0.97404064,105560.0,105550.0,0.18642055]
[1749947558062,0.99044064,105560.0,105550.0,0.18642055]
[1749947559098,1.00597776,105560.0,105550.0,0.18642055]
[1749947559300,0.99931902,105560.0,105550.0,0.18642055]
[1749947559434,1.00597784,105560.0,105550.0,0.18642055]
[1749947559654,0.99931899,105560.0,105550.0,0.18642055]
[1749947559832,1.0059778,105560.0,105550.0,0.18642055]
[1749947560026,1.00597784,105560.0,105550.0,0.18642055]
[1749947560231,0.98957778,105560.0,105550.0,0.18642055]
[1749947560691,0.98957777,105560.0,105550.0,0.18642055]
[1749947561000,0.98957774,105560.0,105550.0,0.18642055]
[1749947561421,0.98957773,105560.0,105550.0,0.20262055]
[1749947561865,0.98069939,105560.0,105550.0,0.20262055]
[1749947562070,0.98957777,105560.0,105550.0,0.20262055]
[1749947562301,0.98069941,105560.0,105550.0,0.20262055]
[1749947562511,1.00477776,105560.0,105550.0,0.18642055]
[1749947562715,1.00477779,105560.0,105550.0,0.18642055]
[1749947562917,1.00477777,105560.0,105550.0,0.18642055]
[1749947563297,1.00477779,105560.0,105550.0,0.18642055]
[1749947563525,0.99811902,105560.0,105550.0,0.18642055]
[1749947563931,1.00477773,105560.0,105550.0,0.18642055]
[1749947564150,0.99811902,105560.0,105550.0,0.18642055]
[1749947564373,1.00477778,105560.0,105550.0,0.18642055]
[1749947564581,0.99589939,105560.0,105550.0,0.18642055]
[1749947564783,1.00477774,105560.0,105550.0,0.18642055]
[1749947564987,0.99811898,105560.0,105550.0,0.18642055]
[1749947565187,1.00477682,105560.0,105550.0,0.18642055]
[1749947565319,1.00477614,105560.0,105550.0,0.18642055]
[1749947565536,0.99589871,105560.0,105550.0,0.18642055]
[1749947565737,0.99811807,105560.0,105550.0,0.18642055]
[1749947565942,1.00477614,105560.0,105550.0,0.18642055]
[1749947566260,1.00477613,105560.0,105550.0,0.18642055]
[1749947566460,1.00477611,105560.0,105550.0,0.18642055]
[1749947566705,0.99589869,105560.0,105550.0,0.18642055]
[1749947566842,1.0047761,105560.0,105550.0,0.18642055]
[1749947567033,1.00477611,105560.0,105550.0,0.18642055]
[1749947567412,0.99589869,105560.0,105550.0,0.18642055]
[1749947567552,1.00477609,105560.0,105550.0,0.18642055]
[1749947568374,0.9895761,105560.0,105550.0,0.20192055]
[1749947568607,0.9806987,105560.0,105550.0,0.18642055]
[1749947568783,0.99623415,105560.0,105550.0,0.18642055]
[1749947568983,0.98735675,105560.0,105550.0,0.18642055]
[1749947569202,0.99623413,105560.0,105550.0,0.18630055]
[1749947569377,0.98735673,105560.0,105550.0,0.18630055]
[1749947569794,0.98957608,105560.0,105550.0,0.18630055]
[1749947570009,0.98735673,105560.0,105550.0,0.18630055]
[1749947570225,0.98735673,105560.0,105550.0,0.03182055]
[1749947570426,0.98957605,105560.0,105550.0,0.1863256]
[1749947570612,0.99623411,105560.0,105550.0,0.1863256]
[1749947570796,0.98735674,105560.0,105550.0,0.1863256]
[1749947570998,0.9962341,105560.0,105550.0,0.1863256]
[1749947571199,0.99623403,105560.0,105550.0,0.1863256]
[1749947571394,0.99623402,105560.0,105550.0,0.1863256]
[1749947571585,0.98735673,105560.0,105550.0,0.1863256]
[1749947571787,0.98957607,105560.0,105550.0,0.1863256]
[1749947571989,0.99623409,105560.0,105550.0,0.1863256]
[1749947572190,0.99623412,105560.0,105550.0,0.1863256]
[1749947572404,0.9806987,105560.0,105550.0,0.1863256]
[1749947572611,0.99623414,105560.0,105550.0,0.1863256]
[1749947572900,0.99623411,105560.0,105550.0,0.1863256]
[1749947573128,0.99623412,105560.0,105550.0,0.1863256]
[1749947573346,0.98735674,105560.0,105550.0,0.0318456]
[1749947573552,1.00235671,105560.0,105550.0,0.1862856]
[1749947573755,1.00235672,105560.0,105550.0,0.1862856]
[1749947573910,0.9956987,105560.0,105550.0,0.1862856]
[1749947574119,0.99623402,105560.0,105550.0,0.1862856]
[1749947574338,0.99623404,105560.0,105550.0,0.1862856]
[1749947574539,0.98735671,105560.0,105550.0,0.1862856]
[1749947574792,0.9806987,105560.0,105550.0,0.1862856]
[1749947575125,0.98957606,105560.0,105550.0,0.1862856]
[1749947575327,0.99623385,105560.0,105550.0,0.1862856]
[1749947575527,0.98957592,105560.0,105550.0,0.1862856]
[1749947575730,0.99623383,105560.0,105550.0,0.1862856]
[1749947575968,0.99623398,105560.0,105550.0,0.1862856]
[1749947576125,0.9806987,105560.0,105550.0,0.1862856]
[1749947576325,1.01123386,105560.0,105550.0,0.1862856]
[1749947576525,0.9956987,105560.0,105550.0,0.1862856]
[1749947576735,1.01123387,105560.0,105550.0,0.1862856]
[1749947576940,1.00457595,105560.0,105550.0,0.1862856]
[1749947577431,1.01123395,105560.0,105550.0,0.1862856]
[1749947577616,1.01123401,105560.0,105550.0,0.1862856]
[1749947577817,0.9956987,105560.0,105550.0,0.1862856]
[1749947577968,1.01123402,105560.0,105550.0,0.1862856]
[1749947578439,1.01123492,105560.0,105550.0,0.1862856]
[1749947578672,1.01123491,105560.0,105550.0,0.1862856]
[1749947578850,1.01123567,105560.0,105550.0,0.1862856]
[1749947579055,1.00235735,105560.0,105550.0,0.1862856]
[1749947579260,1.004577,105560.0,105550.0,0.1862856]
[1749947579584,1.00457693,105560.0,105550.0,0.1862856]
[1749947579784,1.01123562,105560.0,105550.0,0.1862856]
[1749947580207,1.00235738,105560.0,105550.0,0.1862856]
[1749947580412,1.01123563,105560.0,105550.0,0.1862856]
[1749947580613,0.9956987,105560.0,105550.0,0.1862856]
[1749947580895,0.9962356,105560.0,105550.0,0.1862856]
[1749947581093,0.9962356,105560.0,105550.0,0.1860856]
[1749947581094,1.08581868,105560.0,105550.0,0.1860856]
[1749947581335,1.10081865,105560.0,105550.0,0.1860856]
[1749947581542,1.10081865,105560.0,105540.0,0.02844478]
[1749947581543,0.850574,105550.0,105540.0,0.02844478]
[1749947581756,0.56453752,105520.0,105500.0,0.06632327]
[1749947581982,0.53905212,105500.0,105490.0,0.06114478]
[1749947582193,0.99310546,105500.0,105490.0,0.09902327]
[1749947582403,0.99310546,105500.0,105490.0,0.09916545]
[1749947582404,0.54853052,105500.0,105490.0,0.09916545]
[1749947582658,0.99310546,105500.0,105490.0,0.06128696]
[1749947582899,1.08934722,105500.0,105490.0,0.02858696]
[1749947583135,1.08934722,105500.0,105490.0,0.00014218]
[1749947583353,1.23075593,105500.0,105490.0,0.00014218]
[1749947583580,1.23075593,105500.0,105490.0,0.00414218]
[1749947583999,1.43075593,105500.0,105490.0,0.00414218]
[1749947584000,0.20856971,105480.0,105470.0,0.04373856]
[1749947584232,0.19910874,105470.0,105460.0,0.02867248]
[1749947584459,0.59511239,105470.0,105460.0,0.0002277]
[1749947584671,0.19910874,105470.0,105460.0,0.00070241]
[1749947584922,0.19910874,105470.0,105460.0,0.02914719]
[1749947585184,0.19910874,105470.0,105460.0,0.00070241]
[1749947585642,0.93511239,105470.0,105460.0,0.00070241]
[1749947586121,1.25330687,105470.0,105460.0,0.00070241]
[1749947586346,1.26665415,105470.0,105460.0,0.00070241]
[1749947586815,1.27430643,105470.0,105460.0,0.00070241]
[1749947587271,1.27330646,105470.0,105460.0,0.00470241]
[1749947587485,1.27330642,105470.0,105460.0,0.00470241]
[1749947587717,1.28870624,105470.0,105460.0,0.00470241]
[1749947587927,1.28870613,105470.0,105460.0,0.00470241]
[1749947588141,1.44342588,105470.0,105460.0,0.00470241]
[1749947588379,1.44342587,105470.0,105460.0,0.00470241]
[1749947588612,1.44642587,105470.0,105460.0,0.00470241]
[1749947588815,1.43977415,105470.0,105460.0,0.00470241]
[1749947589084,1.44642586,105470.0,105460.0,0.00470241]
[1749947589311,1.47727402,105470.0,105460.0,0.00470241]
[1749947589765,1.49181485,105470.0,105460.0,0.00470241]
[1749947589987,1.49011156,105470.0,105460.0,0.00470241]
[1749947590204,1.49376326,105470.0,105460.0,0.00470241]
[1749947590447,1.50076309,105470.0,105460.0,0.00570241]
[1749947590678,1.34604298,105470.0,105460.0,0.00170241]
[1749947590892,0.88343178,105470.0,105460.0,0.00170241]
[1749947591109,0.03091031,105470.0,105460.0,0.19134777]
[1749947591317,0.22053823,105470.0,105460.0,0.01810241]
[1749947591528,0.56053823,105470.0,105460.0,0.08037528]
[1749947591739,0.55105714,105470.0,105460.0,0.09647528]
[1749947591969,0.55770944,105470.0,105460.0,0.04368467]
[1749947592182,0.55770951,105470.0,105460.0,0.05316684]
[1749947592399,0.55770951,105470.0,105460.0,0.65677938]
[1749947592400,0.01160086,105470.0,105460.0,0.65677938]
[1749947592610,0.0468724,105470.0,105460.0,0.65677956]
[1749947592819,0.04687222,105470.0,105460.0,0.66626119]
[1749947593044,0.04287222,105470.0,105460.0,0.66826119]
[1749947593286,0.05235358,105470.0,105460.0,0.26077591]
[1749947593500,0.25669679,105470.0,105460.0,0.26077618]
[1749947593713,0.25769679,105470.0,105460.0,0.27625799]
[1749947593917,0.06806941,105470.0,105460.0,0.27625745]
[1749947594155,0.03439158,105470.0,105460.0,0.27625691]
[1749947594574,0.03439104,105470.0,105460.0,0.27625691]
[1749947594785,0.03439095,105470.0,105460.0,0.26677528]
[1749947594989,0.03439095,105470.0,105460.0,0.27625691]
[1749947594990,0.03339095,105470.0,105460.0,0.27625691]
[1749947595435,0.05900644,105470.0,105460.0,0.27725691]
[1749947595642,0.04004415,105470.0,105460.0,0.27725691]
[1749947595869,0.03339095,105470.0,105460.0,0.27725691]
[1749947596075,0.04004436,105470.0,105460.0,0.27725691]
[1749947596284,0.04004425,105470.0,105460.0,0.27725691]
[1749947596479,0.03339104,105470.0,105460.0,0.27725691]
[1749947596710,0.02108228,105470.0,105460.0,0.27725691]
[1749947596915,0.02390986,105470.0,105460.0,0.75955235]
[1749947597123,0.03339086,105470.0,105460.0,0.67326056]
[1749947597322,0.04287204,105470.0,105460.0,0.27725691]
[1749947597531,0.04952528,105470.0,105460.0,0.27725691]
[1749947597742,0.04287204,105470.0,105460.0,0.57215691]
[1749947598155,0.04952526,105470.0,105460.0,0.57215691]
[1749947598363,0.05839622,105470.0,105460.0,0.57215691]
[1749947598572,0.04287204,105470.0,105460.0,0.57215691]
[1749947598785,0.05174299,105470.0,105460.0,0.57215691]
[1749947599025,0.04891502,105470.0,105460.0,0.57215691]
[1749947599284,0.04891507,105470.0,105460.0,0.57215691]
[1749947599539,0.04891507,105470.0,105460.0,0.96816056]
[1749947599768,0.0400441,105470.0,105460.0,0.96816056]
[1749947599982,0.04891511,105470.0,105460.0,0.96816056]
[1749947600215,0.02047266,105470.0,105460.0,1.06430978]
[1749947600442,0.0049484,105470.0,105460.0,1.06430978]
[1749947600665,0.01442896,105470.0,105460.0,1.06430978]
[1749947601096,0.03278099,105470.0,105460.0,1.06430978]
[1749947601319,0.03278107,105470.0,105460.0,0.96816056]
[1749947601541,0.02390969,105470.0,105460.0,0.96816056]
[1749947601764,0.03278106,105470.0,105460.0,0.96816056]
[1749947602020,0.02390969,105470.0,105460.0,0.96816056]
[1749947602247,0.0333906,105470.0,105460.0,1.12332056]
[1749947602457,0.05174305,105470.0,105460.0,0.72731691]
[1749947602637,0.04226195,105470.0,105460.0,0.72731691]
[1749947602860,0.04004402,105470.0,105460.0,0.72731691]
[1749947603076,0.04891524,105470.0,105460.0,0.72731691]
[1749947603305,0.04226184,105470.0,105460.0,0.72731691]
[1749947603487,0.03278093,105470.0,105460.0,0.72731691]
[1749947603688,0.0489152,105470.0,105460.0,0.72731691]
[1749947603889,0.04004395,105470.0,105460.0,0.57215691]
[1749947604188,0.0489152,105470.0,105460.0,1.12332056]
[1749947604406,0.05174276,105470.0,105460.0,1.12332056]
[1749947604623,0.04287151,105470.0,105460.0,1.12332056]
[1749947604848,0.05839618,105470.0,105460.0,0.96816056]
[1749947605056,0.05344778,105470.0,105460.0,1.12328056]
[1749947605267,0.04740438,105470.0,105460.0,1.12324056]
[1749947605470,0.06292902,105470.0,105460.0,1.12324056]
[1749947605681,0.0562756,105470.0,105460.0,1.12324056]
[1749947605909,0.24368597,105470.0,105460.0,1.11375893]
[1749947606121,0.24590378,105470.0,105460.0,1.11375893]
[1749947606325,0.24368597,105470.0,105460.0,1.11375893]
[1749947606550,0.25255717,105470.0,105460.0,1.11375893]
[1749947606752,0.24368596,105470.0,105460.0,1.11375893]
[1749947607086,0.25255716,105470.0,105460.0,0.71775528]
[1749947607291,0.24368596,105470.0,105460.0,0.71775528]
[1749947607529,0.25255727,105470.0,105460.0,0.71775528]
[1749947607733,0.243686,105470.0,105460.0,0.71775528]
[1749947607935,0.25255723,105470.0,105460.0,0.71775528]
[1749947608156,0.05344849,105470.0,105460.0,0.72723691]
[1749947608363,0.05344878,105470.0,105460.0,0.72723691]
[1749947608558,0.04679523,105470.0,105460.0,0.72723691]
[1749947608772,0.04396751,105470.0,105460.0,0.72723691]
[1749947608971,0.24307671,105470.0,105460.0,0.68930985]
[1749947609217,0.23642315,105470.0,105460.0,0.70827356]
[1749947609426,0.04679577,105470.0,105460.0,0.71775519]
[1749947609586,0.04457789,105470.0,105460.0,0.71775519]
[1749947609937,0.0534493,105470.0,105460.0,0.71775519]
[1749947610138,0.04457791,105470.0,105460.0,0.71775519]
[1749947610343,0.04679577,105470.0,105460.0,0.71775519]
[1749947610546,0.04457792,105470.0,105460.0,0.71775519]
[1749947610765,0.04457795,105470.0,105460.0,0.71775519]
[1749947610983,0.03731445,105470.0,105460.0,0.71775519]
[1749947611188,0.03448687,105470.0,105460.0,0.71775519]
[1749947611394,0.02561541,105470.0,105460.0,0.56267519]
[1749947611597,0.03448647,105470.0,105460.0,1.11367884]
[1749947611803,0.03792347,105470.0,105460.0,0.95867884]
[1749947611978,0.04679183,105470.0,105460.0,1.20737556]
[1749947612183,0.01834892,105470.0,105460.0,1.20737556]
[1749947612388,0.02782974,105470.0,105460.0,1.20737556]
[1749947612592,0.01896138,105470.0,105460.0,1.20737556]
[1749947612793,0.03731077,105470.0,105460.0,1.11367884]
[1749947612998,0.02782977,105470.0,105460.0,1.11367884]
[1749947613417,0.0049484,105490.0,105480.0,0.21804973]
[1749947613619,0.37942715,105490.0,105480.0,0.78439338]
[1749947613829,0.37942716,105490.0,105480.0,0.78439338]
[1749947614042,0.37942716,105490.0,105480.0,0.79979338]
[1749947614043,0.36329667,105490.0,105480.0,0.79979338]
[1749947614258,0.37277569,105490.0,105480.0,0.79979338]
[1749947614461,0.36390628,105490.0,105480.0,0.79979338]
[1749947614738,0.02247004,105490.0,105480.0,0.79979338]
[1749947614952,0.01581828,105490.0,105480.0,0.8303146]
[1749947615204,0.01581834,105490.0,105480.0,0.8303146]
[1749947615407,0.38739146,105500.0,105490.0,0.23332906]
[1749947615651,0.3867828,105500.0,105490.0,0.23332906]
[1749947615860,0.3867828,105500.0,105490.0,0.22385012]
[1749947615861,0.58300846,105500.0,105490.0,0.22385012]
[1749947616085,0.57353075,105500.0,105490.0,0.22385012]
[1749947616311,0.56687836,105500.0,105490.0,0.21802924]
[1749947616517,0.5640526,105500.0,105490.0,0.35403091]
[1749947616721,0.55518269,105500.0,105490.0,0.3635103]
[1749947616931,0.56405261,105500.0,105490.0,0.3635103]
[1749947617134,0.54853025,105500.0,105490.0,0.3635103]
[1749947617338,0.56405255,105500.0,105490.0,0.3635103]
[1749947617461,0.55840012,105500.0,105490.0,0.3635103]
[1749947617685,0.56505259,105500.0,105490.0,0.3635103]
[1749947617892,0.56605261,105500.0,105490.0,0.3729896]
[1749947618098,0.56605261,105500.0,105490.0,0.3635103]
[1749947618313,0.54770438,105500.0,105490.0,0.3635103]
[1749947618552,0.56544411,105500.0,105490.0,0.6584103]
[1749947618774,0.56887871,105500.0,105490.0,0.67736845]
[1749947618988,0.58440101,105500.0,105490.0,0.66788951]
[1749947619194,0.5755311,105500.0,105490.0,0.66788951]
[1749947619437,0.57774857,105500.0,105490.0,0.66788951]
[1749947619632,0.5777486,105500.0,105490.0,0.66788951]
[1749947619844,0.56887871,105500.0,105490.0,0.66788951]
[1749947620049,0.5777486,105500.0,105490.0,0.66788951]
[1749947620265,0.56887871,105500.0,105490.0,0.67736863]
[1749947620481,0.58440102,105500.0,105490.0,0.67736863]
[1749947620696,0.57553111,105500.0,105490.0,0.69316863]
[1749947621112,0.5777486,105500.0,105490.0,0.69316863]
[1749947621324,0.584401,105500.0,105490.0,0.69316863]
[1749947621534,0.58440093,105500.0,105490.0,0.69316863]
[1749947621735,0.58440095,105500.0,105490.0,0.68368951]
[1749947622002,0.55940049,105500.0,105490.0,0.6740503]
[1749947622355,0.56827034,105500.0,105490.0,0.6835296]
[1749947622562,0.56605288,105500.0,105490.0,0.6835296]
[1749947622766,0.57492274,105500.0,105490.0,0.6835296]
[1749947622993,0.56605288,105500.0,105490.0,0.6835296]
[1749947623270,0.55940049,105500.0,105490.0,0.6835296]
[1749947623475,0.56827346,105500.0,105490.0,0.6835296]
[1749947623678,0.57492819,105500.0,105490.0,0.6835296]
[1749947624292,0.56827346,105500.0,105490.0,0.6835296]
[1749947624536,0.57492819,105500.0,105490.0,0.6835296]
[1749947624748,0.56827346,105500.0,105490.0,0.6835296]
[1749947624946,0.56827346,105500.0,105490.0,0.69300881]
[1749947625064,0.55940049,105500.0,105490.0,0.69300881]